Workbook

Sheet HỌC KỲ
B1: LỊCH HỌC CỦA TÔI
B2: HỌC KỲ MÙA THU
C3: THỜI GIAN BẮT ĐẦU | D3: THỜI LưỢNG | F3: NĂM
C4: 09:00:00 | D4: 60 | E4: (Theo Phút)
B5: THỜI GIAN | C5: T2 | D5: T3 | E5: T4 | F5: T5 | G5: T6 | H5: T7 | I5: CN
B6: =Thời_gian_Bắt_đầu+TIME(0,(ROW(A1)-1)*Khoảng_Thời_gian,0) -> 09:00:00 | C6: Ăn sáng | D6: Ăn sáng | E6: Ăn sáng | F6: Ăn sáng | G6: Ăn sáng
B7: 10:00:00 | C7: Kinh doanh: Tòa nhà Giảng đường B, Phòng 256
B8: 11:00:00 | F8: Vật lý: Phòng thí nghiệm Tòa nhà J, Phòng 309
B9: 12:00:00
B10: 13:00:00
B11: 14:00:00
B12: 15:00:00
B13: 16:00:00
B14: 17:00:00
B15: 18:00:00
B16: 19:00:00
B17: 20:00:00
B18: 21:00:00
B19: 22:00:00
B20: 23:00:00
B21: 1
B22: 1.041666667
B23: 1.083333333
B24: 1.125
B25: 1.166666667
B26: 1.208333333
B27: 1.25
B28: 1.291666667
B29: 1.333333333

Sheet TÍN CHỈ
B1: ĐẠI HỌC
B2: TRÌNH LẬP KẾ HOẠCH TÍN CHỈ
B3: Tiêu đề Bằng | C3: =Năm -> NĂM
B4: TIẾN ĐỘ TỔNG THỂ | D4: TIẾN ĐỘ TỔNG THỂ
B5: =AVERAGE(Các_khóa_học[ĐIỂM]) -> 3.5 | C5: =IFERROR(TEXT(AVERAGEIF(Các_khóa_học[ĐÃ HOÀN THÀNH],"Có",Các_khóa_học[ĐIỂM]),"0,00"),"0,00")&" GPA hiện tại" -> 3,50 GPA hiện tại | D5: =COUNTIF(Các_khóa_học[ĐÃ HOÀN THÀNH],"Có")/COUNTA(Các_khóa_học[TIÊU ĐỀ KHÓA HỌC]) -> 0.6666666667 | E5: =TEXT(COUNTIF(Các_khóa_học[ĐÃ HOÀN THÀNH],"Có")/COUNTA(Các_khóa_học[TIÊU ĐỀ KHÓA HỌC]),"0%")&" Đã hoàn thành" -> 67% Đã hoàn thành
B6: Lưu ý: Tóm tắt tín chỉ sau đây được tự động điền bằng các mục nhập trong bảng Khóa học Đại học bên dưới
B7: YÊU CẦU | C7: TỔNG SỐ TÍN CHỈ | D7: ĐÃ ĐẠT | E7: CẦN THIẾT
B8: Chuyên ngành Chính | C8: =IF(SUMIF(Các_khóa_học[YÊU CẦU],'TÍN CHỈ'!$B8,Các_khóa_học[TÍN CHỈ])=0,"0",SUMIF(Các_khóa_học[YÊU CẦU],'TÍN CHỈ'!$B8,Các_khóa_học[TÍN CHỈ])) -> 4 | D8: =SUMIFS(Các_khóa_học[TÍN CHỈ],Các_khóa_học[YÊU CẦU],'TÍN CHỈ'!$B8,Các_khóa_học[ĐÃ HOÀN THÀNH],"Có") -> 4 | E8: =SUMIF(Các_khóa_học[YÊU CẦU],'TÍN CHỈ'!$B8,Các_khóa_học[TÍN CHỈ])-SUMIFS(Các_khóa_học[TÍN CHỈ],Các_khóa_học[YÊU CẦU],'TÍN CHỈ'!$B8,Các_khóa_học[ĐÃ HOÀN THÀNH],"Có") -> 0
B9: Chuyên ngành Phụ | C9: =IF(SUMIF(Các_khóa_học[YÊU CẦU],'TÍN CHỈ'!$B9,Các_khóa_học[TÍN CHỈ])=0,"0",SUMIF(Các_khóa_học[YÊU CẦU],'TÍN CHỈ'!$B9,Các_khóa_học[TÍN CHỈ])) -> 3 | D9: =SUMIFS(Các_khóa_học[TÍN CHỈ],Các_khóa_học[YÊU CẦU],'TÍN CHỈ'!$B9,Các_khóa_học[ĐÃ HOÀN THÀNH],"Có") -> 0 | E9: =SUMIF(Các_khóa_học[YÊU CẦU],'TÍN CHỈ'!$B9,Các_khóa_học[TÍN CHỈ])-SUMIFS(Các_khóa_học[TÍN CHỈ],Các_khóa_học[YÊU CẦU],'TÍN CHỈ'!$B9,Các_khóa_học[ĐÃ HOÀN THÀNH],"Có") -> 3
B10: Khóa học Tùy chọn | C10: =IF(SUMIF(Các_khóa_học[YÊU CẦU],'TÍN CHỈ'!$B10,Các_khóa_học[TÍN CHỈ])=0,"0",SUMIF(Các_khóa_học[YÊU CẦU],'TÍN CHỈ'!$B10,Các_khóa_học[TÍN CHỈ])) -> 2 | D10: =SUMIFS(Các_khóa_học[TÍN CHỈ],Các_khóa_học[YÊU CẦU],'TÍN CHỈ'!$B10,Các_khóa_học[ĐÃ HOÀN THÀNH],"Có") -> 2 | E10: =SUMIF(Các_khóa_học[YÊU CẦU],'TÍN CHỈ'!$B10,Các_khóa_học[TÍN CHỈ])-SUMIFS(Các_khóa_học[TÍN CHỈ],Các_khóa_học[YÊU CẦU],'TÍN CHỈ'!$B10,Các_khóa_học[ĐÃ HOÀN THÀNH],"Có") -> 0
B11: Nghiên cứu Chung | C11: =IF(SUMIF(Các_khóa_học[YÊU CẦU],'TÍN CHỈ'!$B11,Các_khóa_học[TÍN CHỈ])=0,"0",SUMIF(Các_khóa_học[YÊU CẦU],'TÍN CHỈ'!$B11,Các_khóa_học[TÍN CHỈ])) -> 0 | D11: =SUMIFS(Các_khóa_học[TÍN CHỈ],Các_khóa_học[YÊU CẦU],'TÍN CHỈ'!$B11,Các_khóa_học[ĐÃ HOÀN THÀNH],"Có") -> 0 | E11: =SUMIF(Các_khóa_học[YÊU CẦU],'TÍN CHỈ'!$B11,Các_khóa_học[TÍN CHỈ])-SUMIFS(Các_khóa_học[TÍN CHỈ],Các_khóa_học[YÊU CẦU],'TÍN CHỈ'!$B11,Các_khóa_học[ĐÃ HOÀN THÀNH],"Có") -> 0
B12: Tổng | C12: =SUBTOTAL(109,'TÍN CHỈ'!$C$8:$C$11) -> 9 | D12: =SUBTOTAL(109,'TÍN CHỈ'!$D$8:$D$11) -> 6 | E12: =SUBTOTAL(109,'TÍN CHỈ'!$E$8:$E$11) -> 3
B13: Các khóa học
B14: TIÊU ĐỀ KHÓA HỌC | C14: # KHÓA HỌC | D14: YÊU CẦU | E14: TÍN CHỈ | F14: ĐÃ HOÀN THÀNH | G14: ĐIỂM | H14: HỌC KỲ
B15: Khóa học 1 | C15: Số | D15: Chuyên ngành Chính | E15: 4 | F15: Có | G15: 4.0 | H15: Học kỳ 1
B16: Khóa học 2 | C16: Số | D16: Chuyên ngành Phụ | E16: 3 | F16: Không | H16: Học kỳ 1
B17: Khóa học 3 | C17: Số | D17: Khóa học Tùy chọn | E17: 2 | F17: Có | G17: 3.0 | H17: Học kỳ 1

Sheet NGÂN SÁCH
B1: =Đại_học -> ĐẠI HỌC
B2: BẢNG THEO DÕI NGÂN SÁCH
B3: Ngân sách của Tôi | C3: =Năm -> NĂM
B4: PHẦN TRĂM THU NHẬP ĐÃ CHI TIÊU
B5: =CHI_PHÍ_RÒNG_HÀNG_THÁNG/THU_NHẬP_RÒNG_HÀNG_THÁNG -> 1 ₫
B6: =B5 -> 0.7454545455
B7: THU NHẬP RÒNG HÀNG THÁNG | C7: CHI PHÍ RÒNG HÀNG THÁNG | D7: SỐ DƯ
B8: =C10 -> 2,750 ₫ | C8: ='CHI PHÍ RÒNG HÀNG THÁNG'!C4+'CHI PHÍ HỌC KỲ'!D4 -> 2,050 ₫ | D8: =THU_NHẬP_RÒNG_HÀNG_THÁNG-CHI_PHÍ_RÒNG_HÀNG_THÁNG -> 700 ₫
B9: Số tháng trong học kỳ | C9: 4
B10: THU NHẬP HÀNG THÁNG | C10: =SUM(Thu_nhập_Hàng_tháng[SỐ TIỀN]) -> 2,750 ₫
B11: MỤC | C11: SỐ TIỀN
B12: Thu nhập cố định | C12: 1,500 ₫
B13: Hỗ trợ tài chính | C13: 500 ₫
B14: Khoản vay | C14: 500 ₫
B15: Thu nhập khác | C15: 250 ₫

Sheet CHI PHÍ RÒNG HÀNG THÁNG
B1: =Đại_học -> ĐẠI HỌC
B2: BẢNG THEO DÕI NGÂN SÁCH
B3: Chi phí Hàng tháng | C3: =Năm -> NĂM
B4: CHI PHÍ HÀNG THÁNG | C4: =SUM(Chi_phí_Hàng_tháng[SỐ TIỀN]) -> 1,675 ₫
B5: MỤC | C5: SỐ TIỀN
B6: Tiền thuê | C6: 300 ₫
B7: Tiện ích | C7: 50 ₫
B8: Điện thoại di động | C8: 75 ₫
B9: Tạp phẩm | C9: 250 ₫
B10: Chi phí ô tô | C10: 50 ₫
B11: Khoản vay học viên | C11: 500 ₫
B12: Thẻ tín dụng | C12: 275 ₫
B13: Bảo hiểm | C13: 125 ₫
B14: Giải trí | C14: 50 ₫
B15: Khác | C15: 0 ₫

Sheet CHI PHÍ HỌC KỲ
B1: =Đại_học -> ĐẠI HỌC
B2: BẢNG THEO DÕI NGÂN SÁCH
B3: Chi phí Học kỳ | C3: =Năm -> NĂM
B4: CHI PHÍ HỌC KỲ (Tổng/Mỗi Tháng) | C4: =SUM(CHI_PHÍ_HỌC_KỲ[SỐ TIỀN]) -> 1,500 ₫ | D4: =SUM(CHI_PHÍ_HỌC_KỲ[MỖI THÁNG]) -> 375 ₫
B5: MỤC | C5: SỐ TIỀN | D5: MỖI THÁNG
B6: Học phí | C6: 750 ₫ | D6: =CHI_PHÍ_HỌC_KỲ[[#This Row],[SỐ TIỀN]]/Tháng_trong_học_kỳ -> 188 ₫
B7: Phí sử dụng phòng thí nghiệm | C7: 250 ₫ | D7: =CHI_PHÍ_HỌC_KỲ[[#This Row],[SỐ TIỀN]]/Tháng_trong_học_kỳ -> 63 ₫
B8: Sách | C8: 500 ₫ | D8: =CHI_PHÍ_HỌC_KỲ[[#This Row],[SỐ TIỀN]]/Tháng_trong_học_kỳ -> 125 ₫
B9: Tiền đặt cọc | C9: 0 ₫ | D9: =CHI_PHÍ_HỌC_KỲ[[#This Row],[SỐ TIỀN]]/Tháng_trong_học_kỳ -> 0 ₫
B10: Phương tiện đi lại | C10: 0 ₫ | D10: =CHI_PHÍ_HỌC_KỲ[[#This Row],[SỐ TIỀN]]/Tháng_trong_học_kỳ -> 0 ₫
B11: Phí khác | C11: 0 ₫ | D11: =CHI_PHÍ_HỌC_KỲ[[#This Row],[SỐ TIỀN]]/Tháng_trong_học_kỳ -> 0 ₫

Sheet SÁCH
B1: =Đại_học -> ĐẠI HỌC
B2: BẢNG THEO DÕI SÁCH
B3: Danh mục Sách
B4: TIÊU ĐỀ | C4: TÁC GIẢ | D4: KHÓA HỌC | E4: MUA Ở ĐÂU? | F4: ISBN | G4: GHI CHÚ
B5: Tiêu đề Sách | C5: Tác giả | D5: Khóa học | E5: Địa điểm | F5: Số
B6: Tiêu đề Sách | C6: Tác giả | D6: Khóa học | E6: Địa điểm | F6: Số
B7: Tiêu đề Sách | C7: Tác giả | D7: Khóa học | E7: Địa điểm | F7: Số
